fUSD/lending_fUSD_20250530
["ID","MTS","AMOUNT","RATE_DAILY","PERIOD"]
[363203445,1748621631916,-420.0,0.00023561,2]
[363203446,1748621631952,-420.0,0.00023561,2]
[363203447,1748621631990,-1162.9,0.00023561,2]
[363203448,1748621632026,-420.0,0.00023561,2]
[363203449,1748621632062,-1730.46,0.00023561,2]
[363203450,1748621632101,-1595.1,0.00023561,2]
[363203451,1748621632137,-420.0,0.00023561,2]
[363203452,1748621632176,-420.0,0.00023561,2]
[363203453,1748621632214,-965.62,0.00023561,2]
[363203454,1748621632253,-420.0,0.00023561,2]
[363203455,1748621632294,-579.81,0.00023561,2]
[363203456,1748621632333,-452.11,0.00023561,2]
[363203457,1748621632370,-420.0,0.00023561,2]
[363203458,1748621632409,-180.42194511,0.00023561,2]
[363203459,1748621632447,-574.01,0.00023561,2]
[363203460,1748621632487,-420.0,0.00023561,2]
[363203461,1748621632525,-567.31,0.00023561,2]
[363203462,1748621632562,-420.0,0.00023561,2]
[363203463,1748621632601,-3388.65,0.00023561,2]
[363203464,1748621632636,-420.0,0.00023561,2]
[363203465,1748621632673,-420.0,0.00023561,2]
[363203466,1748621632712,-566.39,0.00023561,2]
[363203467,1748621632749,-420.0,0.00023561,2]
[363203468,1748621632788,-420.0,0.00023561,2]
[363203469,1748621632827,-420.0,0.00023561,2]
[363203470,1748621632863,-420.0,0.00023561,2]
[363203471,1748621632902,-3541.26,0.00023561,2]
[363203472,1748621632941,-434.71,0.00023561,2]
[363203473,1748621632981,-932.08,0.00023561,2]
[363203474,1748621633020,-822.46,0.00023683,2]
[363203475,1748621633058,-1000.0,0.00023695,2]
[363203476,1748621633097,-154.66205202,0.00023726,2]
[363203477,1748621633139,-154.66205204,0.00023726,2]
[363203478,1748621633177,-19850.0,0.00023834,2]
[363203479,1748621633218,-420.0,0.00023835,2]
[363203480,1748621633257,-420.0,0.00023835,2]
[363203481,1748621633298,-479.58,0.00023835,2]
[363203482,1748621633339,-420.0,0.00023835,2]
[363203483,1748621633377,-420.0,0.00023835,2]
[363203484,1748621633417,-939.99,0.00023835,2]
[363203485,1748621633456,-420.0,0.00023835,2]
[363203486,1748621633496,-420.0,0.00023835,2]
[363203487,1748621633537,-420.0,0.00023835,2]
[363203488,1748621633575,-420.0,0.00023835,2]
[363203489,1748621633615,-420.0,0.00023835,2]
[363203490,1748621633654,-420.0,0.00023835,2]
[363203491,1748621633691,-420.0,0.00023835,2]
[363203492,1748621633729,-471.1,0.00023835,2]
[363203493,1748621633771,-256.04170296,0.00023835,2]
[363203494,1748621633809,-420.0,0.00023835,2]
[363203495,1748621633846,-420.0,0.00023835,2]
[363203496,1748621633883,-422.88004002,0.00023835,2]
[363203497,1748621633920,-321.79224097,0.00023835,2]
[363203498,1748621633959,-420.0,0.00023835,2]
[363203499,1748621633999,-420.0,0.00023835,2]
[363203500,1748621634039,-420.0,0.00023835,2]
[363203501,1748621634077,-420.0,0.00023835,2]
[363203502,1748621634119,-527.91,0.00023835,2]
[363203503,1748621634158,-420.0,0.00023835,2]
[363203504,1748621634198,-420.0,0.00023835,2]
[363203505,1748621634241,-502.62,0.00023835,2]
[363203506,1748621634280,-420.0,0.00023835,2]
[363203507,1748621634318,-420.0,0.00023835,2]
[363203508,1748621634359,-250.0,0.00023835,2]
[363203509,1748621634399,-151.0,0.00023835,7]
[363203510,1748621634440,-420.0,0.00023835,2]
[363203511,1748621634481,-153.186964,0.00023835,7]
[363203512,1748621634520,-420.0,0.00023835,2]
[363203513,1748621634559,-456.47,0.00023835,2]
[363203514,1748621634599,-420.0,0.00023835,2]
[363203515,1748621634636,-472.21,0.00023835,2]
[363203516,1748621634673,-420.0,0.00023835,2]
[363203517,1748621634711,-420.0,0.00023835,2]
[363203518,1748621634747,-420.0,0.00023835,2]
[363203519,1748621634784,-151.0,0.00023835,7]
[363203520,1748621634823,-754.53,0.00023835,2]
[363203521,1748621634859,-420.0,0.00023835,2]
[363203522,1748621634897,-420.0,0.00023835,2]
[363203523,1748621634937,-420.0,0.00023835,2]
[363203524,1748621634976,-420.0,0.00023835,2]
[363203525,1748621635016,-420.0,0.00023835,2]
[363203526,1748621635056,-420.0,0.00023835,2]
[363203527,1748621635094,-1074.85,0.00023835,2]
[363203528,1748621635133,-151.0,0.00023835,7]
[363203529,1748621635174,-420.0,0.00023835,2]
[363203530,1748621635213,-151.0,0.00023835,7]
[363203531,1748621635253,-420.0,0.00023835,2]
[363203532,1748621635292,-420.0,0.00023835,2]
[363203533,1748621635331,-522.22,0.00023835,2]
[363203534,1748621635372,-420.0,0.00023835,2]
[363203535,1748621635411,-230.54313745,0.00023835,2]
[363203536,1748621635448,-420.0,0.00023835,2]
[363203537,1748621635490,-420.0,0.00023835,2]
[363203538,1748621635528,-420.0,0.00023835,2]
[363203539,1748621635568,-420.0,0.00023835,2]
[363203540,1748621635609,-460.43580943,0.00023835,2]
[363203541,1748621635646,-420.0,0.00023835,2]
[363203542,1748621635686,-1366.25,0.00023835,2]
[363203543,1748621635725,-420.0,0.00023835,2]
[363203544,1748621635768,-528.28,0.00023835,2]
[363203545,1748621635810,-420.0,0.00023835,2]
[363203546,1748621635847,-420.0,0.00023835,2]
[363203547,1748621635885,-420.0,0.00023835,2]
[363203548,1748621635926,-456.12,0.00023835,2]
[363203549,1748621635965,-420.0,0.00023835,2]
[363203550,1748621636004,-420.0,0.00023835,2]
[363203551,1748621636045,-420.0,0.00023835,2]
[363203552,1748621636085,-420.0,0.00023835,2]
[363203553,1748621636126,-420.0,0.00023835,2]
[363203554,1748621636167,-153.69886233,0.00023835,2]
[363203555,1748621636207,-420.0,0.00023835,2]
[363203556,1748621636250,-420.0,0.00023835,2]
[363203557,1748621636434,-420.0,0.00023835,2]
[363203558,1748621636476,-151.0,0.00023835,7]
[363203559,1748621636518,-420.0,0.00023835,2]
[363203560,1748621636583,-420.0,0.00023835,2]
[363203561,1748621636627,-451.25,0.00023835,2]
[363203562,1748621636667,-669.88,0.00023835,2]
[363203563,1748621636710,-420.0,0.00023835,2]
[363203564,1748621636749,-420.0,0.00023835,2]
[363203565,1748621636789,-633.2,0.00023835,2]
[363203566,1748621636834,-420.0,0.00023835,2]
[363203567,1748621636874,-420.0,0.00023835,2]
[363203568,1748621636917,-420.0,0.00023835,2]
[363203569,1748621636959,-420.0,0.00023835,2]
[363203570,1748621636999,-153.933946,0.00023835,7]
[363203571,1748621637040,-420.0,0.00023835,2]
[363203572,1748621637080,-420.0,0.00023835,2]
[363203573,1748621637120,-420.0,0.00023835,2]
[363203574,1748621637163,-420.0,0.00023835,2]
[363203575,1748621637203,-491.81,0.00023835,2]
[363203576,1748621637245,-420.0,0.00023835,2]
[363203577,1748621637287,-420.0,0.00023835,2]
[363203578,1748621637326,-152.902438,0.00023835,7]
[363203579,1748621637366,-984.97,0.00023835,2]
[363203580,1748621637404,-420.0,0.00023835,2]
[363203581,1748621637442,-420.0,0.00023835,2]
[363203582,1748621637482,-420.0,0.00023835,2]
[363203583,1748621637519,-561.86,0.00023835,2]
[363203584,1748621637559,-420.0,0.00023835,2]
[363203585,1748621637599,-609.7,0.00023835,2]
[363203586,1748621637636,-1453.08,0.00023835,2]
[363203587,1748621637674,-1000.74,0.00023835,2]
[363203588,1748621637712,-420.0,0.00023835,2]
[363203589,1748621637750,-420.0,0.00023835,2]
[363203590,1748621637790,-420.0,0.00023835,2]
[363203591,1748621637829,-420.0,0.00023835,2]
[363203592,1748621637871,-162.34803338,0.00023835,2]
[363203593,1748621637911,-584.98,0.00023835,2]
[363203594,1748621637955,-653.92,0.00023835,2]
[363203595,1748621637996,-420.0,0.00023835,2]
[363203596,1748621638037,-496.98239579,0.00023835,2]
[363203597,1748621638078,-474.55,0.00023835,2]
[363203598,1748621638117,-601.37,0.00023835,2]
[363203599,1748621638156,-420.0,0.00023835,2]
[363203600,1748621638197,-420.0,0.00023835,2]
[363203601,1748621638238,-547.8,0.00023835,2]
[363203602,1748621638279,-420.0,0.00023835,2]
[363203603,1748621638319,-420.0,0.00023835,2]
[363203604,1748621638359,-344.28172624,0.00023835,2]
[363203605,1748621638399,-420.0,0.00023835,2]
[363203606,1748621638438,-477.09,0.00023835,2]
[363203607,1748621638479,-180.685344,0.00023835,7]
[363203608,1748621638518,-535.78,0.00023835,2]
[363203609,1748621638559,-180.685344,0.00023835,7]
[363203610,1748621638601,-674.1,0.00023835,2]
[363203611,1748621638642,-521.11,0.00023835,2]
[363203612,1748621638683,-151.0,0.00023835,7]
[363203613,1748621638721,-586.5,0.00023835,2]
[363203614,1748621638763,-420.0,0.00023835,2]
[363203615,1748621638803,-435.08,0.00023835,2]
[363203616,1748621638846,-607.52,0.00023835,2]
[363203617,1748621638886,-656.82,0.00023835,2]
[363203618,1748621638923,-988.3,0.00023835,2]
[363203619,1748621638962,-420.0,0.00023835,2]
[363203620,1748621639002,-420.0,0.00023835,2]
[363203621,1748621639041,-420.0,0.00023835,2]
[363203622,1748621639081,-420.0,0.00023835,2]
[363203623,1748621639120,-420.0,0.00023835,2]
[363203624,1748621639158,-420.0,0.00023835,2]
[363203625,1748621639198,-420.0,0.00023835,2]
[363203626,1748621639236,-485.1395573,0.00023835,2]
[363203627,1748621639275,-151.0,0.00023835,7]
[363203628,1748621639312,-420.0,0.00023835,2]
[363203629,1748621639351,-420.0,0.00023835,2]
[363203630,1748621639391,-420.0,0.00023835,2]
[363203631,1748621639428,-420.0,0.00023835,2]
[363203632,1748621639467,-539.38,0.00023835,2]
[363203633,1748621639506,-573.95,0.00023835,2]
[363203634,1748621639543,-892.62,0.00023835,2]
[363203635,1748621639581,-151.0,0.00023835,7]
[363203636,1748621639619,-474.82,0.00023835,2]
[363203637,1748621639655,-559.5,0.00023835,2]
[363203638,1748621639694,-420.0,0.00023835,2]
[363203639,1748621639740,-151.0,0.00023835,7]
[363203640,1748621639779,-904.65,0.00023835,2]
[363203641,1748621639820,-420.0,0.00023835,2]
[363203642,1748621639859,-420.0,0.00023835,2]
[363203643,1748621639899,-465.53,0.00023835,2]
[363203644,1748621639942,-151.0,0.00023835,7]
[363203645,1748621639984,-420.0,0.00023835,2]
[363203646,1748621640027,-420.0,0.00023835,2]
[363203647,1748621640071,-814.32,0.00023835,2]
[363203648,1748621640115,-420.0,0.00023835,2]
[363203649,1748621640164,-256.08507,0.00023835,7]
[363203650,1748621640211,-151.0,0.00023835,7]
[363203651,1748621640255,-429.155158,0.00023835,7]
[363203652,1748621640306,-256.08507,0.00023835,7]
[363203653,1748621640351,-490.12,0.00023835,2]
[363203654,1748621640394,-429.155158,0.00023835,7]
[363203655,1748621640436,-420.0,0.00023835,2]
[363203656,1748621640477,-420.0,0.00023835,2]
[363203657,1748621640518,-669.88,0.00023835,2]
[363203658,1748621640559,-420.0,0.00023835,2]
[363203659,1748621640584,-420.0,0.00023835,2]
[363203660,1748621640609,-1024.15,0.00023835,2]
[363203661,1748621640635,-420.0,0.00023835,2]
[363203662,1748621640660,-507.86,0.00023835,2]
[363203663,1748621640684,-151.0,0.00023835,7]
[363203664,1748621640710,-485.5,0.00023835,2]
[363203665,1748621640739,-420.0,0.00023835,2]
[363203666,1748621640763,-151.0,0.00023835,7]
[363203667,1748621640787,-420.0,0.00023835,2]
[363203668,1748621640810,-151.0,0.00023835,7]
[363203669,1748621641200,-151.0,0.00023835,7]
[363203670,1748621641234,-518.37,0.00023835,2]
[363203671,1748621641259,-1733.26,0.00023835,2]
[363203672,1748621641284,-1121.05,0.00023835,2]
[363203673,1748621641308,-779.82,0.00023835,2]
[363203674,1748621641331,-151.0,0.00023835,7]
[363203675,1748621641357,-430.54,0.00023835,2]
[363203676,1748621641381,-1057.53,0.00023835,2]
[363203677,1748621641409,-498.86,0.00023835,2]
[363203678,1748621641434,-586.33,0.00023835,2]
[363203679,1748621641460,-883.98,0.00023835,2]
[363203680,1748621641484,-420.0,0.00023835,2]
[363203681,1748621641508,-420.0,0.00023835,2]
[363203682,1748621641532,-420.0,0.00023835,2]
[363203683,1748621641557,-1000.0,0.00023835,2]
[363203684,1748621641582,-420.0,0.00023835,2]
[363203685,1748621641605,-151.0,0.00023835,7]
[363203686,1748621641629,-151.0,0.00023835,7]
[363203687,1748621641653,-429.88,0.00023835,2]
[363203688,1748621641678,-918.5,0.00023835,2]
[363203689,1748621641702,-6943.32,0.00023835,2]
[363203690,1748621641729,-478.33,0.00023835,2]
[363203691,1748621641757,-151.0,0.00023835,7]
[363203692,1748621641782,-420.0,0.00023835,2]
[363203693,1748621641805,-494.89,0.00023835,2]
[363203694,1748621641831,-420.0,0.00023835,2]
[363203695,1748621641855,-420.0,0.00023835,2]
[363203696,1748621641878,-151.0,0.00023835,7]
[363203697,1748621641902,-481.15,0.00023835,2]
[363203698,1748621641927,-420.0,0.00023835,2]
[363203699,1748621641952,-151.0,0.00023835,7]
[363203700,1748621641978,-151.0,0.00023835,7]
[363203701,1748621642004,-420.0,0.00023835,2]
[363203702,1748621642045,-5313.78,0.00023835,2]
[363203703,1748621642088,-151.0,0.00023835,7]
[363203704,1748621642128,-423.74,0.00023835,2]
[363203705,1748621642170,-422.14,0.00023835,2]
[363203706,1748621642212,-426.98,0.00023835,2]
[363203707,1748621642251,-641.17,0.00023835,2]
[363203708,1748621642293,-420.0,0.00023835,2]
[363203709,1748621642333,-420.0,0.00023835,2]
[363203710,1748621642376,-420.0,0.00023835,2]
[363203711,1748621642422,-420.0,0.00023835,2]
[363203712,1748621642471,-488.76,0.00023835,2]
[363203713,1748621642520,-759.34,0.00023835,2]
[363203714,1748621642564,-692.95,0.00023835,2]
[363203715,1748621642607,-1159.63,0.00023835,2]
[363203716,1748621642649,-2604.25,0.00023835,2]
[363203717,1748621642689,-420.0,0.00023835,2]
[363203718,1748621642730,-2234.11,0.00023835,2]
[363203719,1748621642777,-420.0,0.00023835,2]
[363203720,1748621642820,-2926.35,0.00023835,2]
[363203721,1748621642861,-7394.8,0.00023835,2]
[363203722,1748621642899,-420.0,0.00023835,2]
[363203723,1748621642940,-972.44,0.00023835,2]
[363203724,1748621642981,-420.0,0.00023835,2]
[363203725,1748621643023,-420.0,0.00023835,2]
[363203726,1748621643068,-545.89,0.00023835,2]
[363203727,1748621643112,-343.29009377,0.00023835,2]
[363203728,1748621643157,-1266.42,0.00023835,2]
[363203729,1748621643201,-559.57,0.00023835,2]
[363203730,1748621643245,-1031.04,0.00023835,2]
[363203731,1748621643288,-420.0,0.00023835,2]
[363203732,1748621643333,-17120.95,0.00023835,2]
[363203733,1748621643376,-1111.37,0.00023835,2]
[363203734,1748621643416,-420.0,0.00023835,2]
[363203735,1748621643459,-11625.5,0.00023835,2]
[363203736,1748621643503,-564.78,0.00023835,2]
[363203737,1748621643548,-420.0,0.00023835,2]
[363203738,1748621643593,-566.8,0.00023835,2]
[363203739,1748621643637,-420.0,0.00023835,2]
[363203740,1748621643682,-604.85,0.00023835,2]
[363203741,1748621643739,-420.0,0.00023835,2]
[363203742,1748621643782,-420.0,0.00023835,2]
[363203743,1748621643825,-420.0,0.00023835,2]
[363203744,1748621643866,-368.85441376,0.00023835,2]
[363203745,1748621643907,-389.01,0.00023835,2]
[363203746,1748621643947,-420.0,0.00023835,2]
[363203747,1748621643992,-420.0,0.00023835,2]
[363203748,1748621644038,-513.17,0.00023835,2]
[363203749,1748621644080,-623.07,0.00023835,2]
[363203750,1748621644125,-420.0,0.00023835,2]
[363203751,1748621644169,-1196.88,0.00023835,2]
[363203752,1748621644212,-1167.21,0.00023835,2]
[363203753,1748621644256,-1237.98,0.00023835,2]
[363203754,1748621644297,-314.05078951,0.00023835,2]
[363203755,1748621644340,-1084.16,0.00023835,2]
[363203756,1748621644382,-10255.69,0.00023835,2]
[363203757,1748621644423,-420.0,0.00023835,2]
[363203758,1748621644465,-420.0,0.00023835,2]
[363203759,1748621644503,-151.0,0.00023835,7]
[363203760,1748621644542,-420.0,0.00023835,2]
[363203761,1748621644583,-445.68,0.00023835,2]
[363203762,1748621644621,-1436.75,0.00023835,2]
[363203763,1748621644659,-420.0,0.00023835,2]
[363203764,1748621644701,-420.0,0.00023835,2]
[363203765,1748621644743,-151.0,0.00023835,7]
[363203766,1748621644785,-426.95,0.00023835,2]
[363203767,1748621644827,-901.95,0.00023835,2]
[363203768,1748621644865,-420.0,0.00023835,2]
[363203769,1748621644908,-420.0,0.00023835,2]
[363203770,1748621644950,-420.0,0.00023835,2]
[363203771,1748621644992,-420.0,0.00023835,2]
[363203772,1748621645036,-2806.87,0.00023835,2]
[363203773,1748621645079,-571.85,0.00023835,2]
[363203774,1748621645125,-420.0,0.00023835,2]
[363203775,1748621645169,-420.0,0.00023835,2]
[363203776,1748621645214,-420.0,0.00023835,2]
[363203777,1748621645260,-534.14,0.00023835,2]
[363203778,1748621645303,-420.0,0.00023835,2]
[363203779,1748621645406,-555.08,0.00023835,2]
[363203780,1748621645449,-420.0,0.00023835,2]
[363203781,1748621645495,-542.27,0.00023835,2]
[363203782,1748621645538,-420.0,0.00023835,2]
[363203783,1748621645581,-420.0,0.00023835,2]
[363203784,1748621645623,-420.0,0.00023835,2]
[363203785,1748621645664,-420.0,0.00023835,2]
[363203786,1748621645709,-420.0,0.00023835,2]
[363203787,1748621645758,-1273.38,0.00023835,2]
[363203788,1748621645800,-470.07,0.00023835,2]
[363203789,1748621645845,-478.85,0.00023835,2]
[363203790,1748621645893,-420.0,0.00023835,2]
[363203791,1748621645943,-420.0,0.00023835,2]
[363203792,1748621645989,-458.93,0.00023835,2]
[363203793,1748621646033,-420.0,0.00023835,2]
[363203794,1748621646079,-420.0,0.00023835,2]
[363203795,1748621646127,-504.5,0.00023835,2]
[363203796,1748621646168,-420.0,0.00023835,2]
[363203797,1748621646210,-1099.62,0.00023835,2]
[363203798,1748621646257,-6516.94,0.00023835,2]
[363203799,1748621646301,-420.0,0.00023835,2]
[363203800,1748621646345,-420.0,0.00023835,2]
[363203801,1748621646384,-420.0,0.00023835,2]
[363203802,1748621646426,-420.0,0.00023835,2]
[363203803,1748621646470,-420.0,0.00023835,2]
[363203804,1748621646514,-420.0,0.00023835,2]
[363203805,1748621646555,-513.42,0.00023835,2]
[363203806,1748621646599,-873.71,0.00023835,2]
[363203807,1748621646639,-420.0,0.00023835,2]
[363203808,1748621646680,-420.0,0.00023835,2]
[363203809,1748621646719,-2704.43,0.00023835,2]
[363203810,1748621646759,-420.0,0.00023835,2]
[363203811,1748621646799,-1674.42,0.00023835,2]
[363203812,1748621646840,-2667.39,0.00023835,2]
[363203813,1748621646882,-206.8774065,0.00023835,2]
[363203814,1748621646922,-420.0,0.00023835,2]
[363203815,1748621646965,-1503.5,0.00023835,2]
[363203816,1748621647004,-1091.03,0.00023835,2]
[363203817,1748621647044,-1034.17,0.00023835,2]
[363203818,1748621647086,-420.0,0.00023835,2]
[363203819,1748621647128,-3836.9,0.00023835,2]
[363203820,1748621647170,-420.0,0.00023835,2]
[363203821,1748621647212,-861.88,0.00023835,2]
[363203822,1748621647261,-420.0,0.00023835,2]
[363203823,1748621647303,-517.5,0.00023835,2]
[363203824,1748621647343,-420.0,0.00023835,2]
[363203825,1748621647385,-1477.74,0.00023835,2]
[363203826,1748621647424,-420.0,0.00023835,2]
[363203827,1748621647468,-1101.62,0.00023835,2]
[363203828,1748621647508,-420.0,0.00023835,2]
[363203829,1748621647549,-420.0,0.00023835,2]
[363203830,1748621647591,-420.0,0.00023835,2]
[363203831,1748621647631,-674.33,0.00023835,2]
[363203832,1748621647672,-420.0,0.00023835,2]
[363203833,1748621647718,-420.0,0.00023835,2]
[363203834,1748621647763,-420.0,0.00023835,2]
[363203835,1748621647807,-516.75,0.00023835,2]
[363203836,1748621647851,-436.76,0.00023835,2]
[363203837,1748621647896,-1180.07,0.00023835,2]
[363203838,1748621647940,-3000.87,0.00023835,2]
[363203839,1748621647985,-420.0,0.00023835,2]
[363203840,1748621648028,-857.91,0.00023835,2]
[363203841,1748621648072,-420.0,0.00023835,2]
[363203842,1748621648117,-1162.9,0.00023835,2]
[363203843,1748621648160,-420.0,0.00023835,2]
[363203844,1748621648203,-1730.46,0.00023835,2]
[363203845,1748621648249,-1595.1,0.00023835,2]
[363203846,1748621648292,-420.0,0.00023835,2]
[363203847,1748621648337,-420.0,0.00023835,2]
[363203848,1748621648380,-965.62,0.00023835,2]
[363203849,1748621648425,-420.0,0.00023835,2]
[363203850,1748621648468,-579.81,0.00023835,2]
[363203851,1748621648510,-452.11,0.00023835,2]
[363203852,1748621648553,-420.0,0.00023835,2]
[363203853,1748621648594,-574.01,0.00023835,2]
[363203854,1748621648636,-420.0,0.00023835,2]
[363203855,1748621648678,-567.31,0.00023835,2]
[363203856,1748621648720,-420.0,0.00023835,2]
[363203857,1748621648764,-3388.65,0.00023835,2]
[363203858,1748621648806,-152.417063,0.00023835,7]
[363203859,1748621648850,-420.0,0.00023835,2]
[363203860,1748621648893,-420.0,0.00023835,2]
[363203861,1748621648934,-566.39,0.00023835,2]
[363203862,1748621648977,-420.0,0.00023835,2]
[363203863,1748621649020,-257.89307612,0.00023835,2]
[363203864,1748621649061,-420.0,0.00023835,2]
[363203865,1748621649103,-420.0,0.00023835,2]
[363203866,1748621649145,-3541.26,0.00023835,2]
[363203867,1748621649187,-434.71,0.00023835,2]
[363203868,1748621649233,-932.08,0.00023835,2]
[363203869,1748621649274,-606.39,0.00023836,2]
[363203870,1748621649317,-5135.04,0.000239,7]
[363203871,1748621649359,-154.66205202,0.00023945,2]
[363203872,1748621649399,-154.66205204,0.00023973,2]
[363203873,1748621649439,-250.0,0.00023999,2]
[363203874,1748621649477,-3442.75,0.00024,2]
[363203875,1748621649517,-4565.2,0.00024,2]
[363203876,1748621649558,-151.0,0.00024,7]
[363203877,1748621649599,-151.0,0.00024,7]
[363203878,1748621649643,-151.0,0.00024,7]
[363203879,1748621649685,-151.0,0.00024,7]
[363203880,1748621649725,-151.0,0.00024,7]
[363203881,1748621649769,-4565.2,0.00024,2]
[363203882,1748621649811,-3442.75,0.00024,2]
[363203883,1748621650201,420.0,0.00023561,2]
[363203884,1748621650250,467.24,0.00023287,2]
[363203885,1748621650312,420.0,0.00023835,2]
[363203886,1748621650362,427.61,0.00022739,2]
[363203887,1748621650407,467.24,0.00023561,2]
[363203888,1748621650463,427.61,0.00023013,2]
[363203889,1748621650511,467.24,0.00023835,2]
[363203890,1748621650560,427.61,0.00023287,2]
[363203891,1748621650632,427.61,0.00023561,2]
[363203892,1748621650695,427.61,0.00023835,2]
[363203893,1748621650924,1109.42602954,0.00023461,2]
[363203894,1748621651046,420.0,0.00021917,2]
[363203895,1748621651100,420.0,0.00022191,2]
[363203896,1748621651154,420.0,0.00021917,2]
[363203897,1748621651199,420.0,0.00022465,2]
[363203898,1748621651253,420.0,0.00022191,2]
[363203899,1748621651297,420.0,0.00022739,2]
[363203900,1748621651352,420.0,0.00023013,2]
[363203901,1748621651524,420.0,0.00022465,2]
[363203902,1748621651574,551.12,0.00023287,2]
[363203903,1748621651626,420.0,0.00022739,2]
[363203904,1748621651743,420.0,0.00023013,2]
[363203905,1748621651868,420.0,0.00023287,2]
[363203906,1748621651913,420.0,0.00021917,2]
[363203907,1748621651967,420.0,0.00023561,2]
[363203908,1748621652016,420.0,0.00022191,2]
[363203909,1748621652064,420.0,0.00021917,2]
[363203910,1748621652115,420.0,0.00023835,2]
[363203911,1748621652161,420.0,0.00022465,2]
[363203912,1748621652206,420.0,0.00022191,2]
[363203913,1748621652258,420.0,0.00022739,2]
[363203914,1748621652305,420.0,0.00022465,2]
[363203915,1748621652351,420.0,0.00023013,2]
[363203916,1748621652399,420.0,0.00022739,2]
[363203917,1748621652448,420.0,0.00023287,2]
[363203918,1748621652589,420.0,0.00023561,2]
[363203919,1748621652636,420.0,0.00023013,2]
[363203920,1748621652683,437.1,0.00023835,2]
[363203921,1748621652729,420.0,0.00023287,2]
[363203922,1748621652783,1000.0,0.00021917,2]
[363203923,1748621652851,420.0,0.00023561,2]
[363203924,1748621652898,1109.42602954,0.00023918,2]
[363203925,1748621652943,1123.54,0.00022191,2]
[363203926,1748621653016,420.0,0.00023835,2]
[363203927,1748621653107,420.0,0.00021917,2]
[363203928,1748621653161,466.46,0.00021917,2]
[363203929,1748621653371,420.0,0.00021917,2]
[363203930,1748621653491,202.82,0.00022191,2]
[363203931,1748621653537,420.0,0.00021917,2]
[363203932,1748621653583,420.0,0.00021917,2]
[363203933,1748621653704,420.0,0.00022191,2]
[363203934,1748621653750,420.0,0.00022191,2]
[363203935,1748621653797,420.0,0.00021917,2]
[363203936,1748621653852,420.0,0.00022465,2]
[363203937,1748621653896,420.0,0.00022465,2]
[363203938,1748621653941,420.0,0.00022191,2]
[363203939,1748621653990,420.0,0.00021917,2]
[363203940,1748621654051,420.0,0.00022465,2]
[363203941,1748621654102,420.0,0.00022191,2]
[363203942,1748621654150,420.0,0.00022739,2]
[363203943,1748621654204,420.0,0.00022739,2]
[363203944,1748621654249,399.27,0.00022465,2]